Cogmind - Beta 14 *** ADVENTURER MODE // 2024.08.11 @ 18:57:55 Player: Ms. V3-11A Result: Destroyed by HY-M6B(R) with Subdweller Machine Gun Performance ------------- Evolutions (0) 0 Regions Visited (2) 400 Robots Destroyed (24) 120 Value Destroyed (579) 579 Prototype IDs (18) 360 Alien Tech Used (0) 0 Bonus (-116) -116 TOTAL SCORE: 1343 Bonus ------- Friendly Fire -116 Cogmind --------- Core Integrity 0/250 Matter 262/300 Energy 121/125 System Corruption 0% Temperature Warm (171) Movement Rolling (120) Ox1 Location -10/Subcaves Parts ------- > --- POWER (1) -------- Light Ion Engine > --- PROPULSION (2) --- Subdweller Monowheel > --- UTILITY (2) ------ Medium Storage Unit Makeshift Kinetic Plating > --- WEAPON (2) ------- Subdweller Machine Gun Battle Cannon > --- INVENTORY (10) --- Arachnoskeleton Medium Storage Unit Medium Battery (150) High-capacity Matter Pod (200) Beam Cannon Multitool Hammer Peak State ------------ > --- POWER ------------ Light Nuclear Core > --- PROPULSION ------- Aluminum Leg Makeshift Leg > --- UTILITY ---------- Medium Storage Unit Light Armor Plating > --- WEAPON ----------- Riot Gun Riot Gun > --- INVENTORY -------- Arachnoskeleton Medium Storage Unit Medium Battery High-capacity Matter Pod Light Armor Plating Beam Cannon Battle Cannon Hammer [Rating: 18] Favorites ----------- Power Light Ion Engine Engine Light Ion Engine Power Core Light Nuclear Core Propulsion Aluminum Leg Leg Aluminum Leg Wheel Subdweller Monowheel Utility Light Armor Plating Storage Medium Storage Unit Protection Light Armor Plating Weapon EM Pulse Gun Energy Gun EM Pulse Gun Energy Cannon Beam Cannon Ballistic Gun Assault Rifle Ballistic Cannon Battle Cannon Impact Weapon Hammer Build | -11 -10 -10 ------- Run | Yrd Mat Sub Slots Evolved . | . . . Power . | . . . Propulsion . | . . . Utility . | . . . Weapon . | . . . Parts Attached 32 | . 10 22 Power 5 | . 2 3 Engine 4 | . 1 3 Core 1 | . 1 . Reactor . | . . . Propulsion 9 | . 3 6 Treads . | . . . Leg 5 | . 3 2 Wheel 4 | . . 4 Hover . | . . . Flight . | . . . Utility 6 | . 3 3 Device . | . . . Storage 1 | . 1 . Processor . | . . . Hackware . | . . . Protection 5 | . 2 3 Artifact . | . . . Weapon 12 | . 2 10 Energy Gun 4 | . 1 3 Energy Cannon 1 | . . 1 Ballistic Gun 3 | . 1 2 Ballistic Cannon 2 | . . 2 Launcher . | . . . Special Weapon . | . . . Impact Weapon 2 | . . 2 Slashing Weapon . | . . . Piercing Weapon . | . . . Special Melee Weapon . | . . . Unidentified Prototypes . | . . . Parts Lost 4 | . . 4 Power 1 | . . 1 Propulsion 2 | . . 2 Utility 1 | . . 1 Weapon . | . . . Highest Loss Streak 1 | . . 1 To Critical Strikes 1 | . . 1 Average Slot Usage (%) 96 | . 99 94 Engine 10 | . 13 6 Core 3 | . . 6 Leg 21 | . 28 15 Wheel 3 | . . 7 Storage 14 | . 14 14 Protection 13 | . 13 14 Energy Gun 11 | . 13 8 Ballistic Gun 10 | . 14 7 Ballistic Cannon 3 | . . 7 Impact Weapon 1 | . . 3 Peak Build Rating 18 | 6 10 18 Average Rating 10 | 6 7 13 On Entrance 7 | 6 6 10 Naked Turns . | . . . Heaviest Build 25 | 12 21 25 Greatest Support 40 | 20 20 40 Greatest Overweight (x) 8 | . 1 8 Average Overweight (x) . | . . 1 Largest Inventory Capacity 10 | 8 10 10 Average Capacity 9 | 8 8 10 Most Carried 10 | 5 10 10 Average Carried 9 | 4 8 9 Final Capacity 10 | 8 10 10 Final Carried 10 | 2 10 9 Class Distribution -------------------- 85% | Mutant 14% | Scavenger-Mutant Dominant Class ---------------- Mutant | -10/Materials Mutant | -10/Subcaves Resources | -11 -10 -10 ----------- Run | Yrd Mat Sub Matter Collected 947 | 200 394 353 Remotely . | . . . Salvage Created 1027 | . 674 353 Parts 45 | . 29 16 Haulers Intercepted 1 | . 1 . Recyclers Shooed 1 | . 1 . Parts Field Recycled . | . . . Retrieved Matter . | . . . Parts Self-Destructed 6 | . . 6 Prevented . | . . . Kills | -11 -10 -10 ------- Run | Yrd Mat Sub Combat Hostiles Destroyed 18 | . 11 7 Melee 1 | . . 1 Guns 14 | . 11 3 Cannons 3 | . . 3 Classes Destroyed 8 | . 4 4 Hauler 1 | . 1 . Recycler 3 | . 3 . Swarmer 5 | . 5 . Grunt 7 | . 6 1 Sentry 1 | . . 1 Artisan 1 | . . 1 Subdweller 5 | . . 5 Zionite 2 | . . 2 Best Kill Streak 5 | . 5 2 Combat Bots Only 3 | . 3 2 Max Kills in Single Turn 1 | . 1 1 Gunslinging . | . . . Exploded . | . . . Melee 1 | . . 1 Uniques/NPCs Destroyed . | . . . Combat | -11 -10 -10 -------- Run | Yrd Mat Sub Hostile Shots Fired 124 | . 60 64 Missed 33 | . 17 16 Damage Taken 1209 | . 339 870 Core 251 | . 33 218 Absorbed by Shields . | . . . Ignored by Resistances 330 | . 110 220 Regen/Repaired (Parts) 33 | . 33 . Core Remaining (%) 100 | 100 . . Volleys Fired 87 | . 43 44 Largest 2 | . 2 2 Hottest 100 | . 60 100 Shots Fired 149 | . 79 70 Gun 120 | . 79 41 Cannon 29 | . . 29 Launcher . | . . . Special . | . . . Kinetic 80 | . 36 44 Thermal 2 | . . 2 Explosive . | . . . Electromagnetic 67 | . 43 24 Robot Hit Streak 23 | . 10 23 Robot Miss Streak 2 | . 2 1 Penetration Max . | . . . Secondary Targets . | . . . Shots Hit Robots 113 | . 54 59 Core Hits 43 | . 27 16 Critical Kills 1 | . . 1 Critical Parts Destroyed . | . . . Critical Strikes 3 | . . 3 Destroy 1 | . . 1 Corrupt 1 | . . 1 Smash 1 | . . 1 Melee Attacks 12 | . . 12 Impact 12 | . . 12 Slashing . | . . . Piercing . | . . . Sneak Attacks . | . . . Combat Hostiles . | . . . Follow-up Attacks . | . . . Damage Inflicted 1449 | . 648 801 Guns 977 | . 644 333 Cannons 354 | . . 354 Explosions 49 | . . 49 Melee 65 | . . 65 Ramming 4 | . 4 . Kinetic 778 | . 243 535 Thermal 84 | . . 84 Explosive . | . . . Electromagnetic 518 | . 401 117 Impact 65 | . . 65 Slashing . | . . . Piercing . | . . . Highest Corruption . | . . . Average Corruption . | . . . Corruption Purged . | . . . Corruption Blocked . | . . . Overload Shots . | . . . Overflow Damage . | . . . Projectiles . | . . . Explosions . | . . . Melee . | . . . Knockbacks 4 | . . 4 Impact . | . . . Kinetic 4 | . . 4 Secondary . | . . . Self-Inflicted Damage . | . . . Shots . | . . . Rammed . | . . . Targets Rammed 3 | . 3 . Kicked 3 | . 3 . Crushed . | . . . Highest Temperature 222 | . 127 222 Average Temperature 45 | . 43 84 Received Heat Transfer 521 | . 159 362 Siege Activations . | . . . Robots Corrupted . | . . . Combat Hostiles . | . . . Parts Fried 3 | . 2 1 Impact Corruptions . | . . . Robots Melted . | . . . Combat Hostiles . | . . . Parts Melted . | . . . Heat Transferred 124 | . . 124 Parts Sabotaged . | . . . Parts Stolen . | . . . Parts Stripped . | . . . Power Chain Reactions 1 | . . 1 Alert | -11 -10 -10 ------- Run | Yrd Mat Sub Peak Influence 150 | . 150 . Initial . | . . . Average 29 | . 29 . Maximum Alert Level . | . . . Low Security (%) 100 | 100 100 . Level 1 . | . . . Level 2 . | . . . Level 3 . | . . . Level 4 . | . . . Level 5 . | . . . High Security . | . . . Max Security . | . . . Squads Dispatched 1 | . 1 . Investigation 1 | . 1 . Extermination . | . . . Reinforcement . | . . . Assault . | . . . Garrison . | . . . Intercept . | . . . Searches Triggered . | . . . Construction Impeded . | . . . Haulers Reinforced . | . . . Active Scanning Responses . | . . . Cargo Convoy Interrupts . | . . . Stealth | -11 -10 -10 --------- Run | Yrd Mat Sub Distress Signals 1 | . 1 . Communications Jammed . | . . . Distress Signals . | . . . Times Spotted 36 | . 27 9 Peak Tracking Total 4 | . 4 2 Tactical Retreats 1 | . 1 . Traps | -11 -10 -10 ------- Run | Yrd Mat Sub Traps Triggered 4 | . 2 2 Indirectly . | . . . Trap Hack Attempts . | . . . Triggered . | . . . Disarmed . | . . . Reprogrammed . | . . . Reused . | . . . Traps Extracted . | . . . Installed . | . . . Triggered . | . . . Machines | -11 -10 -10 ---------- Run | Yrd Mat Sub Machines Disabled 1 | . . 1 Max in Single Turn 1 | . . 1 Machines Repaired . | . . . Machines Dismantled . | . . . Machines Sabotaged . | . . . Overloaded Fab Kills . | . . . Hacking | -11 -10 -10 --------- Run | Yrd Mat Sub Machines Accessed 10 | . 9 1 Terminals 7 | . 7 . Fabricators . | . . . Repair Stations 1 | . 1 . Recycling Units 1 | . 1 . Scanalyzers . | . . . Garrison Access . | . . . Total Hacks 37 | . 28 9 Successful 31 | . 22 9 Failed 6 | . 6 . Catastrophic . | . . . Database Lockouts . | . . . Manual 10 | . 10 . Terminals 24 | . 24 . Fabricators . | . . . Repair Stations 2 | . 2 . Recycling Units 2 | . 2 . Scanalyzers . | . . . Garrison Access . | . . . Terminal Hacks 26 | . 17 9 Record 8 | . . 8 Part Schematic 5 | . 5 . Prototype ID Bank 5 | . 5 . Branch Access Points 1 | . 1 . Dispatch Records 1 | . 1 . Transport Status 1 | . 1 . Registered Components 1 | . 1 . Zone Layout 3 | . 3 . Derelict Proto ID Bank 1 | . . 1 Fabricator Hacks . | . . . Repair Station Hacks 2 | . 2 . Scan Component 1 | . 1 . Repair 1 | . 1 . Recycling Unit Hacks 1 | . 1 . Retrieve Components 1 | . 1 . Scanalyzer . | . . . Garrison Access Hacks . | . . . Unauthorized Hacks 2 | . 2 . Terminals 1 | . 1 . Botnet 1 | . 1 . Fabricators . | . . . Repair Stations . | . . . Recycling Units 1 | . 1 . Reject 1 | . 1 . Scanalyzers . | . . . Garrison Access . | . . . Data Cores Recovered . | . . . Used . | . . . Hacking Detections 8 | . 8 . Full Trace Events . | . . . Feedback Events . | . . . Feedback Blocked . | . . . Robot Schematics Acquired . | . . . Robots Built . | . . . Authchips . | . . . Time . | . . . Total Robot Build Rating . | . . . Part Schematics Acquired 5 | . 5 . Parts Built . | . . . Authchips . | . . . Time . | . . . Total Part Build Rating . | . . . Parts Repaired 1 | . 1 . Time 26 | . 26 . Parts Recycled . | . . . Recycled Matter . | . . . Retrieved Matter . | . . . Retrieved Components 10 | . 10 . Parts Scanalyzed . | . . . Part Schematics Acquired . | . . . Parts Damaged . | . . . Bothacking | -11 -10 -10 ------------ Run | Yrd Mat Sub Used RIF Installer . | . . . Robots Hacked . | . . . Non-combat . | . . . Combat . | . . . Robot Hacks Applied . | . . . Relay Couplers Released . | . . . Fabnet Peak Effective % . | . . . Robots Rewired . | . . . Allies Hacked . | . . . Hacks Repelled . | . . . Allies | -11 -10 -10 -------- Run | Yrd Mat Sub Total Allies . | . . . Largest Group . | . . . Highest-Rated Group . | . . . Highest-Rated Ally . | . . . Total Orders . | . . . Ally Attacks . | . . . Total Damage . | . . . Kills . | . . . Allies Corrupted . | . . . Allies Melted . | . . . Intel | -11 -10 -10 ------- Run | Yrd Mat Sub Robot Analysis Total . | . . . Derelict Logs Recovered 1 | . . 1 Drone Launches . | . . . Drone Recoveries . | . . . Exploration | -11 -10 -10 ------------- Run | Yrd Mat Sub Turns Passed 4710 | 2 2385 2323 Spaces Moved 1985 | 1 861 1123 Core 155 | . . 155 Treads . | . . . Legs 1641 | 1 861 779 Wheels 189 | . . 189 Hover . | . . . Flight . | . . . Fastest Speed 110 | 120 120 110 Average Speed 165 | 120 135 188 Slowest Speed 450 | 120 190 450 Overloaded Moves . | . . . Propulsion Burnouts . | . . . Robots Hopped . | . . . Cave-ins Triggered . | . . . Exploration Rate (%) 50 | 2 94 56 Regions Visited 2 Branch Regions 1 Pre-discovered Areas 1 | . . 1 Known Exits Taken . | . . . Unknown Exits Taken 2 | 1 1 . Scrap Searched 8 | . . 8 Spaces Dug . | . . . Terrain Destroyed . | . . . Melee . | . . . Projectile . | . . . AOE . | . . . Terrain Rammed . | . . . Walls Destroyed . | . . . Machines Disabled . | . . . Actions | -11 -10 -10 --------- Run | Yrd Mat Sub Total 3251 | 4 2003 1244 Wait 1082 | . 1064 18 Move 1983 | . 860 1123 Hop . | . . . Pick Up 19 | . 13 6 Fast Attach 9 | . 2 7 Attach 3 | . . 3 Detach 1 | . . 1 Swap 20 | . 8 12 Drop 32 | 4 10 18 Fire 87 | . 43 44 Melee 12 | . . 12 Ram . | . . . Kick 3 | . 3 . Crush . | . . . Escape Stasis . | . . . Rewire . | . . . Trap . | . . . Miscellaneous . | . . . Route ------- -11/Scrapyard -10/Materials (discovered 5 exits: [*Mat x3] / *Min / *Sub) -10/Subcaves (discovered 1 exit: [*Mat]) History --------- Turn | Location | Event 3 | -11/Scrapyard | Discovered new exit (range 0) 3 | -11/Scrapyard | Entered Materials 86 | -10/Materials | Identified exit to Mines 264 | -10/Materials | Discovered new exit (range 15) 313 | -10/Materials | Build established: Mutant 1133 | -10/Materials | Discovered new exit (range 9) 1458 | -10/Materials | Discovered new exit (range 12) 1935 | -10/Materials | Discovered new exit (range 5) 2154 | -10/Materials | Repaired EM Pulse Gun 2388 | -10/Materials | Entered Subcaves 2628 | -10/Subcaves | Discovered new exit (range 14) 2719 | -10/Subcaves | Learned location of Zion (-7) 2719 | -10/Subcaves | Met a Zionite searching for "candidates" 2993 | -10/Subcaves | Visited 4L-MR0's lab 3021 | -10/Subcaves | Found Arachnoskeleton 3080 | -10/Subcaves | Build established: Scavenger-Mutant 3286 | -10/Subcaves | Shifting Twisted Machinery released Battle Cannon 3294 | -10/Subcaves | Shifting Twisted Machinery released Shrapnel Trap 3593 | -10/Subcaves | Core integrity fell below 50% 3954 | -10/Subcaves | Build established: Mutant 4016 | -10/Subcaves | Core integrity fell below 20% 4711 | -10/Subcaves | Destroyed by HY-M6B(R) with Subdweller Machine Gun Last Messages --------------- 04011_ 3B-LME(R) destroyed. 04017_ EL-PF2(R) knocked back. 04019_ Aluminum Leg destroyed. 04020_ EL-PF2(R) destroyed. 04030_ Acquired 32 matter. 04034_ Acquired 1 matter. 04042_ Dropped Battle Rifle. 04053_ Acquired 2 matter. 04065_ Subatomizers dissect the Battle Rifle. 04458_ Acquired 1 matter. 04508_ Sub. Power Source shoots sparks and powers down. 04512_ Dropped Broken Sub. Power Source. 04628_ Acquired 49 matter. 04646_ Dropped Sub. Power Source. 04647_ Acquired Lgt. Ion Engine. 04658_ Acquired Multitool. 04659_ Acquired 16 matter. 04703_ HY-M6B(R) suffers critical hit (Destroy). 04708_ Lgt. Armor Plating destroyed. 04708_ Critical hit (Meltdown: +230). Map ----- +----------------------------------------------------+ | ?????????????????????????????????????????????????? | | ?????????????????????????????????????????????????? | | ?????????????????????????????????????????????????? | | ?????????????????????????????????????????????????? | | ?????????????????????????????????????????????????? | | #############????????????????????????????????????? | | #" """"""#" #????????????????????????????????????? | | #" "X" [ *#????????????????????????????????????? | | ### ###????????????????????????????????????? | | + ####???????????????????????????????????? | | ###########"#???????????????????????????????????? | | ####???####%#???????????????????????????????????? | | #####" #???????????????????????????????????? | | # "##?????###??#####????????????????????? | | " ] ##""#????### ### #????????????????????? | | #"" ## "######### #????????????????????? | | #####" #### #????????????????????? | | ### " ## ###??????????????????? | | ##??? #????????????? | | ######### #? #?? #????????????? | | #???????# ##?# ## ## ??????????? | | #???????# ##??# % ?????????? | | #???????# ###?# ## R ?????????? | | #???????# ## ### #; % ????????? | | #??###### ## ????????? | | #### ## @ R ????????? | | # #### ??????### | | ### #?????????????????# | | ### ###### ##???????? ????????## | | ### ###?## #?####???# ?#?????## | | ##?# ### ### ##??# #?????# | | ##?# ## #?? #?????## | | #?# ## ##?# #??????## | | ##?## #### ### #????????# | | #???### #?# ## ##???????# | | ####?????### #?# ####### ##??????# | | ##??????????# ### ##?????# ##?????# | | ##???####????## ########?????## ### ##????# | | ##??## #????## #????????????# #??# #????? | | #### #????# #????????????# #??# #????# | | #???## ##????????????# #### ##??## | | ##### #????????????# ## ##?# | | ## #????????????## #?# | | ## ######?????????????## ### | | ###########???????????????????#### ## | | ##??????????????????????????????##### ## | | #??????????????????????????????????##### | | " ##??????????????????????????????????????# | | ##??????????????????????????????????????## | | #??????????????????????????????????????## | +----------------------------------------------------+ Best States ------------- Heat Dissipation 25 Energy Generation 15 Energy Capacity 250 Matter Stores 300 Matter Capacity 300 Sight Range 16 Terrain Scan Density 10 Armor Coverage 150 Resistance: KI 30 Resistance: TH 20 Resistance: EX 20 Resistance: EM 20 Resistance: I 20 Resistance: S 20 Resistance: P 20 Evasion (%) 55 Offensive Hacking 10 Item Schematics ----------------- Hcp. Storage Unit | -10/Materials | Hacked Lgt. Armor Plating | -10/Materials | Hacked Lgt. Treads | -10/Materials | Hacked Seismic Detector | -10/Materials | Hacked Structural Scanner | -10/Materials | Hacked Robot Schematics ------------------ None Fabricated ------------ Nothing Alien Tech Used ----------------- None Achievements -------------- None Challenges ------------ None Game ------ Seed DynamicPortableSpear Manual? 0 Play Time 00:24:12 Cumulative 259.8 hours Start 2024.08.11 @ 18:27:36 End 2024.08.11 @ 18:57:55 Sessions 1 Manual Loads 0 Difficulty Adventurer Special Mode None Game No. 194 Rogue 63 Adventurer 105 Explorer 26 Win Type - Total 1 Types 1/0/0/0/0/0/0/0/0 Lore% 59 Gallery% 68 Achievement% 68 Wizard Run 0 Options --------- Layout 2 ASCII 0 Keyboard 0 Movement Arrows Keybinds 0 Fullscreen 0 Font 18/CogNarrow Map View 64x51 Zoom Use 0% Tactical HUD 1 Map Filters NONE Filters BRIGHTNESS(115)|SATURATION(100)|LOW_CONTRAST(0,16,30) Steam 1 RUN: cc6ee709-dc8d-4624-8acd-3efd7a97f853